Cogmind - Beta 15 @@@ ROGUE MODE // 2025.05.23 @ 22:53:03 Player: Spoggerific Result: Destroyed by as-37130 with Assembled Blade Performance ------------- Evolutions (0) 0 Regions Visited (4) 800 Robots Destroyed (20) 100 Value Destroyed (441) 441 Prototype IDs (23) 460 Alien Tech Used (0) 0 Bonus (300) 300 TOTAL SCORE: 2101 Bonus ------- Aligned with FarCom 300 Cogmind --------- Core Integrity 0/250 Matter 270/300 Energy 99/100 System Corruption 5% Temperature Cool (0) Movement Core (50) Location -9/Mines Parts ------- > --- POWER (1) -------- (None) > --- PROPULSION (2) --- (None) > --- UTILITY (2) ------ (None) > --- WEAPON (2) ------- (None) > --- INVENTORY (5) ---- Scrap Suit Structural Scanner Latent Energy Streamer Grenade Launcher Peak State ------------ > --- POWER ------------ Ion Engine > --- PROPULSION ------- Light Treads > --- UTILITY ---------- Medium Storage Unit > --- WEAPON ----------- Spread Laser Latent Energy Streamer > --- INVENTORY -------- Scrap Suit Heat Sink Structural Scanner Spread Laser Spread Laser Grenade Launcher [Rating: 16] Favorites ----------- Power Ion Engine Engine Ion Engine Propulsion Light Treads Treads Light Treads Leg Aluminum Leg Utility Small Storage Unit Device Cooling System Storage Small Storage Unit Weapon Spread Laser Energy Gun Spread Laser Energy Cannon Latent Energy Streamer Ballistic Gun Assault Rifle Build | -11 -10 -10 -10 -9 ------- Run | Yrd Mat Min Exi Min Slots Evolved . | . . . . . Power . | . . . . . Propulsion . | . . . . . Utility . | . . . . . Weapon . | . . . . . Parts Attached 13 | 6 3 . 1 3 Power 1 | 1 . . . . Engine 1 | 1 . . . . Core . | . . . . . Reactor . | . . . . . Propulsion 4 | 2 . . . 2 Treads 2 | 2 . . . . Leg 2 | . . . . 2 Wheel . | . . . . . Hover . | . . . . . Flight . | . . . . . Utility 3 | 1 1 . 1 . Device 1 | . 1 . . . Storage 2 | 1 . . 1 . Processor . | . . . . . Hackware . | . . . . . Protection . | . . . . . Artifact . | . . . . . Weapon 5 | 2 2 . . 1 Energy Gun 2 | . 2 . . . Energy Cannon 1 | . . . . 1 Ballistic Gun 2 | 2 . . . . Ballistic Cannon . | . . . . . Launcher . | . . . . . Special Weapon . | . . . . . Impact Weapon . | . . . . . Slashing Weapon . | . . . . . Piercing Weapon . | . . . . . Special Melee Weapon . | . . . . . Unidentified Prototypes . | . . . . . Parts Lost 4 | . . . . 4 Power . | . . . . . Propulsion 2 | . . . . 2 Utility 1 | . . . . 1 Weapon 1 | . . . . 1 Highest Loss Streak 3 | . . . . 3 To Critical Strikes . | . . . . . Average Backups 5 | . 3 6 7 6 Power . | . . . . . Propulsion . | . . . . . Utility 2 | . 1 2 3 2 Weapon 3 | . 2 4 4 3 Tool/Special . | . . . . . Unused Backups 7 | . 1 . . 6 Power . | . . . . . Propulsion . | . . . . . Utility 3 | . . . . 3 Weapon 4 | . 1 . . 3 Tool/Special . | . . . . . Average Slot Usage (%) 96 | . 95 99 100 63 Engine 13 | . 14 14 14 12 Treads 26 | . 27 28 28 8 Device 12 | . 10 14 14 7 Storage 13 | . 14 14 14 12 Energy Gun 25 | . 24 27 28 15 Ballistic Gun 1 | . 3 . . . Peak Build Rating 16 | 6 10 11 12 16 Average Rating 9 | 4 9 10 11 7 On Entrance 7 | . 6 10 11 12 Naked Turns 18 | . . . . 18 Heaviest Build 23 | 13 18 18 23 20 Greatest Support 40 | 40 40 40 40 20 Greatest Overweight (x) 5 | . 4 . . 5 Average Overweight (x) . | . . . . . Largest Inventory Capacity 10 | 8 8 8 10 10 Average Capacity 8 | 6 8 8 8 9 Most Carried 9 | 1 6 8 8 9 Average Carried 5 | . 4 7 7 7 Final Capacity 10 | 8 8 8 10 5 Final Carried 8 | 1 6 8 8 5 Class Distribution -------------------- 100% | Mutant Dominant Class ---------------- Mutant | -10/Materials Mutant | -10/Mines Mutant | -10/Exiles Mutant | -9/Mines Resources | -11 -10 -10 -10 -9 ----------- Run | Yrd Mat Min Exi Min Matter Collected 330 | 185 133 12 . . Remotely . | . . . . . Salvage Created 438 | . 151 124 . 163 Parts 32 | . 14 9 . 9 Haulers Intercepted . | . . . . . Recyclers Shooed . | . . . . . Parts Field Recycled . | . . . . . Retrieved Matter . | . . . . . Parts Self-Destructed . | . . . . . Prevented . | . . . . . Kills | -11 -10 -10 -10 -9 ------- Run | Yrd Mat Min Exi Min Combat Hostiles Destroyed 17 | . 7 7 . 3 Guns 16 | . 7 7 . 2 AOE 1 | . . . . 1 Classes Destroyed 6 | . 3 1 . 2 Worker 1 | . . 1 . . Recycler 1 | . . . . 1 Watcher 1 | . 1 . . . Swarmer 8 | . 3 5 . . Grunt 8 | . 4 2 . 2 Demolisher 1 | . . . . 1 Best Kill Streak 5 | . 3 5 . 2 Combat Bots Only 5 | . 3 5 . 2 Max Kills in Single Turn 2 | . 1 1 . 2 Gunslinging 1 | . . . . 1 Exploded 1 | . . . . 1 Melee . | . . . . . Uniques/NPCs Destroyed . | . . . . . Combat | -11 -10 -10 -10 -9 -------- Run | Yrd Mat Min Exi Min Hostile Shots Fired 75 | . 40 21 . 14 Missed 20 | . 11 4 . 5 Hits 55 | . 29 17 . 9 Melee 1 | . . . . 1 Projectile 54 | . 29 17 . 8 AOE 4 | . . . . 4 Damage Taken 970 | . 291 159 . 520 Core 283 | . 74 33 . 176 Absorbed by Shields . | . . . . . Core Remaining (%) 100 | 100 . . . . Volleys Fired 31 | . 18 9 . 4 Largest 2 | . 2 2 . 2 Hottest 130 | . 130 130 . 130 Shots Fired 62 | . 36 18 . 8 Gun 61 | . 36 18 . 7 Cannon 1 | . . . . 1 Launcher . | . . . . . Special . | . . . . . Kinetic . | . . . . . Thermal 61 | . 36 18 . 7 Explosive . | . . . . . Electromagnetic 1 | . . . . 1 Robot Hit Streak 13 | . 6 13 . 4 Robot Miss Streak 9 | . 6 9 . 3 Penetration Max . | . . . . . Secondary Targets 4 | . 2 1 . 1 Max Gunslinging Chain 1 | . 1 1 . 1 Shots Hit Robots 56 | . 33 15 . 8 Core Hits 67 | . 31 24 . 12 Critical Kills . | . . . . . Critical Parts Destroyed . | . . . . . Critical Strikes . | . . . . . Melee Attacks . | . . . . . Impact . | . . . . . Slashing . | . . . . . Piercing . | . . . . . Sneak Attacks . | . . . . . Combat Hostiles . | . . . . . Follow-up Attacks . | . . . . . Damage Inflicted 720 | . 313 181 . 226 Guns 580 | . 313 173 . 94 Cannons 8 | . . . . 8 Explosions 124 | . . . . 124 Melee . | . . . . . Ramming 8 | . . 8 . . Kinetic . | . . . . . Thermal 580 | . 313 173 . 94 Explosive . | . . . . . Electromagnetic 132 | . . . . 132 Impact . | . . . . . Slashing . | . . . . . Piercing . | . . . . . Highest Corruption 5 | . . . . 5 Average Corruption 4 | . . . . 4 Corruption Purged . | . . . . . Corruption Blocked . | . . . . . Effects 2 | . . . . 2 Energy Discharges 1 | . . . . 1 Data Loss (minor) 1 | . . . . 1 Overload Shots . | . . . . . Overflow Damage 2 | . . . . 2 Projectiles . | . . . . . Explosions 2 | . . . . 2 Melee . | . . . . . Knockbacks . | . . . . . Impact . | . . . . . Kinetic . | . . . . . Secondary . | . . . . . Self-Inflicted Damage 54 | . . . . 54 Shots 1 | . . . . 1 Rammed 1 | . . 1 . . Targets Rammed 2 | . . 2 . . Kicked . | . . . . . Crushed 1 | . . 1 . . Highest Temperature 307 | . 307 42 . 63 Average Temperature 61 | . 85 12 . 22 Received Heat Transfer 192 | . 126 42 . 24 Siege Activations . | . . . . . Martial Activations . | . . . . . Shielding Activations . | . . . . . Robots Disrupted . | . . . . . Combat Hostiles . | . . . . . Robots Corrupted . | . . . . . Combat Hostiles . | . . . . . Parts Fried . | . . . . . Impact Corruptions . | . . . . . Robots Melted . | . . . . . Combat Hostiles . | . . . . . Parts Melted . | . . . . . Heat Transferred 730 | . 400 215 . 115 Parts Sabotaged . | . . . . . Parts Stolen . | . . . . . Parts Stripped . | . . . . . Power Chain Reactions . | . . . . . Latent Energy Used 105 | . . . . 105 LE Corruption 2 | . . . . 2 Alert | -11 -10 -10 -10 -9 ------- Run | Yrd Mat Min Exi Min Maximum Alert Level . | . . . . . Low Security (%) 100 | 100 100 100 . 100 Level 1 . | . . . . . Level 2 . | . . . . . Level 3 . | . . . . . Level 4 . | . . . . . Level 5 . | . . . . . High Security . | . . . . . Max Security . | . . . . . Peak Influence 125 | . 125 125 . 40 Initial 7 | . . 7 . . Average 36 | . 39 50 . 17 Influence Increases 494 | . 238 190 . 66 Destroy 0b10 Robot/C 340 | . 140 140 . 60 Destroy 0b10 Robot/NC 15 | . 5 5 . 5 Destroy Leader 72 | . 42 30 . . Successful Hack 21 | . 21 . . . Destroy Structure 1 | . . . . 1 Partial Spotted 15 | . 15 . . . Lose Combat Pursuer 30 | . 15 15 . . Influence Decreases 494 | . 217 151 60 66 Entered New Map 74 | . . 14 60 . Time Decay 390 | . 217 137 . 36 Lost Part 30 | . . . . 30 Squads Dispatched 5 | . 5 . . . Investigation 2 | . 2 . . . Extermination . | . . . . . Reinforcement 3 | . 3 . . . Assault . | . . . . . Garrison . | . . . . . Intercept . | . . . . . Searches Triggered . | . . . . . Construction Impeded . | . . . . . Haulers Reinforced . | . . . . . Active Scanning Responses . | . . . . . Cargo Convoy Interrupts . | . . . . . Stealth | -11 -10 -10 -10 -9 --------- Run | Yrd Mat Min Exi Min Distress Signals 1 | . 1 . . . Communications Jammed . | . . . . . Distress Signals . | . . . . . Times Spotted 38 | . 17 8 . 13 Peak Tracking Total 8 | . 6 3 . 8 Tactical Retreats 3 | . 1 1 . 1 Traps | -11 -10 -10 -10 -9 ------- Run | Yrd Mat Min Exi Min Traps Triggered 3 | . 3 . . . Indirectly . | . . . . . Trap Hack Attempts . | . . . . . Triggered . | . . . . . Disarmed . | . . . . . Reprogrammed . | . . . . . Reused . | . . . . . Traps Extracted . | . . . . . Installed . | . . . . . Triggered . | . . . . . Machines | -11 -10 -10 -10 -9 ---------- Run | Yrd Mat Min Exi Min Machines Disabled . | . . . . . Max in Single Turn . | . . . . . Machines Repaired . | . . . . . Machines Dismantled . | . . . . . Machines Sabotaged . | . . . . . Overloaded Fab Kills . | . . . . . Hacking | -11 -10 -10 -10 -9 --------- Run | Yrd Mat Min Exi Min Machines Accessed 9 | . 5 . 4 . Terminals 4 | . 4 . . . Fabricators . | . . . . . Repair Stations . | . . . . . Recycling Units 1 | . 1 . . . Scanalyzers . | . . . . . Garrison Access . | . . . . . Total Hacks 21 | . 10 . 11 . Successful 16 | . 5 . 11 . Failed 5 | . 5 . . . Catastrophic 1 | . 1 . . . Database Lockouts . | . . . . . Manual 9 | . 8 . 1 . Terminals 9 | . 9 . . . Fabricators . | . . . . . Repair Stations . | . . . . . Recycling Units 1 | . 1 . . . Scanalyzers . | . . . . . Garrison Access . | . . . . . Terminal Hacks 11 | . . . 11 . Record 10 | . . . 10 . Proto ID Catalog 1 | . . . 1 . Fabricator Hacks . | . . . . . Repair Station Hacks . | . . . . . Recycling Unit Hacks 1 | . 1 . . . Report Inventory 1 | . 1 . . . Scanalyzer . | . . . . . Garrison Access Hacks . | . . . . . Unauthorized Hacks 4 | . 4 . . . Terminals 4 | . 4 . . . Botnet 4 | . 4 . . . Fabricators . | . . . . . Repair Stations . | . . . . . Recycling Units . | . . . . . Scanalyzers . | . . . . . Garrison Access . | . . . . . Data Cores Recovered . | . . . . . Used . | . . . . . Hacking Detections 4 | . 4 . . . Full Trace Events . | . . . . . Feedback Events . | . . . . . Feedback Blocked . | . . . . . Robot Schematics Acquired . | . . . . . Robots Built . | . . . . . Authchips . | . . . . . Time . | . . . . . Total Robot Build Rating . | . . . . . Part Schematics Acquired . | . . . . . Parts Built . | . . . . . Authchips . | . . . . . Time . | . . . . . Total Part Build Rating . | . . . . . Parts Repaired . | . . . . . Time . | . . . . . Parts Recycled . | . . . . . Recycled Matter . | . . . . . Retrieved Matter . | . . . . . Retrieved Components . | . . . . . Parts Scanalyzed . | . . . . . Part Schematics Acquired . | . . . . . Parts Damaged . | . . . . . Bothacking | -11 -10 -10 -10 -9 ------------ Run | Yrd Mat Min Exi Min Used RIF Installer . | . . . . . Robots Hacked . | . . . . . Non-combat . | . . . . . Combat . | . . . . . Robot Hacks Applied . | . . . . . Relay Couplers Released . | . . . . . Fabnet Peak Effective % . | . . . . . Robots Rewired . | . . . . . Allies Hacked . | . . . . . Hacks Repelled . | . . . . . Allies | -11 -10 -10 -10 -9 -------- Run | Yrd Mat Min Exi Min Total Allies . | . . . . . Largest Group . | . . . . . Highest-Rated Group . | . . . . . Highest-Rated Ally . | . . . . . Total Orders . | . . . . . Ally Attacks . | . . . . . Total Damage . | . . . . . Kills . | . . . . . Allies Corrupted . | . . . . . Allies Melted . | . . . . . Intel | -11 -10 -10 -10 -9 ------- Run | Yrd Mat Min Exi Min Active Infowar (turns) . | . . . . . Robot Analysis Total . | . . . . . Derelict Logs Recovered . | . . . . . Drone Launches . | . . . . . Drone Recoveries . | . . . . . Exploration | -11 -10 -10 -10 -9 ------------- Run | Yrd Mat Min Exi Min Turns Passed 1677 | 113 617 354 501 92 Spaces Moved 966 | 59 337 199 312 59 Core 42 | 2 1 . . 39 Treads 913 | 57 336 199 312 9 Legs 11 | . . . . 11 Wheels . | . . . . . Hover . | . . . . . Flight . | . . . . . Fastest Speed 50 | 50 160 160 160 50 Average Speed 156 | 156 160 160 160 97 Slowest Speed 300 | 160 250 160 160 300 Overloaded Moves . | . . . . . Propulsion Burnouts . | . . . . . Robots Hopped . | . . . . . Potential Cave-ins . | . . . . . Cave-ins Triggered 1 | . . . . 1 Exploration Rate (%) 41 | 5 67 47 69 20 Regions Visited 4 Branch Regions 3 Pre-discovered Areas 1 | . . 1 . . Known Exits Taken . | . . . . . Unknown Exits Taken 4 | 1 1 1 1 . Scrap Searched . | . . . . . Spaces Dug . | . . . . . Terrain Destroyed 5 | . . . . 5 Melee . | . . . . . Projectile . | . . . . . AOE 5 | . . . . 5 Terrain Rammed . | . . . . . Walls Destroyed . | . . . . . Machines Disabled . | . . . . . Actions | -11 -10 -10 -10 -9 --------- Run | Yrd Mat Min Exi Min Total 1071 | 77 378 216 315 85 Wait 39 | 12 7 4 . 16 Move 962 | 58 336 198 311 59 Hop . | . . . . . Pick Up 9 | 1 6 1 1 . Fast Attach 14 | 6 6 . . 2 Attach 3 | . . 1 . 2 Detach 5 | . 2 1 . 2 Swap 1 | . . . 1 . Drop 5 | . 3 . 2 . Fire 31 | . 18 9 . 4 Melee . | . . . . . Ram . | . . . . . Kick . | . . . . . Crush 2 | . . 2 . . Escape Stasis . | . . . . . Rewire . | . . . . . Trap . | . . . . . Miscellaneous . | . . . . . Route ------- -11/Scrapyard -10/Materials (discovered 3 exits: [*Mat x2] / [*Min]) -10/Mines (discovered 3 exits: [*Mat x2] / *Exi) -10/Exiles -9/Mines History --------- Turn | Location | Event 44 | -11/Scrapyard | Discovered new exit (range 16) 114 | -11/Scrapyard | Entered Materials 306 | -10/Materials | Build established: Mutant 368 | -10/Materials | Discovered new exit (range 16) 619 | -10/Materials | Discovered new exit (range 14) 706 | -10/Materials | Discovered new exit (range 12) 714 | -10/Materials | Derelicts attacked the area 731 | -10/Materials | Entered Mines 875 | -10/Mines | Found a Scrap Suit stashed away for nefarious purposes 878 | -10/Mines | Found Scrap Suit 932 | -10/Mines | Discovered new exit (range 4) 1029 | -10/Mines | Discovered new exit (range 5) 1032 | -10/Mines | Learned location of Storage (-8) 1079 | -10/Mines | Deemed a non-threat by the Exiles lab entrance 1079 | -10/Mines | Discovered new exit (range 5) 1085 | -10/Mines | Entered Exiles 1124 | -10/Exiles | Met 8R-AWN 1153 | -10/Exiles | Met EX-HEX 1199 | -10/Exiles | Met EX-BIN 1221 | -10/Exiles | Aligned with FarCom system 1223 | -10/Exiles | Given EX-Vault access code 1261 | -10/Exiles | Opened EX-Vault 1273 | -10/Exiles | Found Latent Energy Streamer 1337 | -10/Exiles | Warned to stay clear of 0b10 Research branches 1388 | -10/Exiles | Met EX-DEC 1565 | -10/Exiles | Discovered new exit (range 14) 1586 | -10/Exiles | Left Exiles lab with Latent Energy Streamer 1586 | -10/Exiles | Entered Mines 1587 | -9/Mines | Assembled infested the area 1592 | -9/Mines | Assisted by a Guerilla fighting off Assembled 1624 | -9/Mines | Crushed by falling debris 1624 | -9/Mines | Core integrity fell below 50% 1624 | -9/Mines | Core integrity fell below 20% 1658 | -9/Mines | Lost 3 parts (1n1u1w) 1660 | -9/Mines | Released all parts (5) 1678 | -9/Mines | Destroyed by as-37130 with Assembled Blade Last Messages --------------- 01639_ The unstable cave ceiling collapses. 01640_ LG-YIC(h) system corrupted by crushing effect. 01640_ U-05 Engineer builds a Wall. 01643_ Acquired Aluminum Leg. 01646_ System corrupted: Energy discharge (-52). 01646_ Acquired Aluminum Leg. 01655_ The unstable cave ceiling collapses. 01655_ K-01 Serf collects debris. 01660_ Released Aluminum Leg. 01660_ Released Spread Laser. 01660_ Released Ion Engine. 01660_ Released Med. Storage Unit. 01660_ Released Aluminum Leg. 01662_ as-38102 sneak attacks. 01662_ K-01 Serf system corrupted by crushing effect. 01662_ K-01 Serf knocked back. 01663_ K-01 Serf system terminally corrupted. 01672_ K-01 Serf destroyed. Map ----- +----------------------------------------------------+ | ??????????????????????????????????????? | | ??????????????????????????????????????? | | ??????????????????????????????????????? | | ??????????????????????????????????????? | | ??????????????????????????????????????? | | ??????????????????????????????????????? | | ??????????????????????????????????????? | | ??????????????????????????????????????? | | ??????????????????????????????????????? | | ??????????????????????????????????????? | | ??????????????????????????????????????? | | ??????????????????????????????????????? | | ??????????????????????????????????????? | | ???s??????????????????????????????????? | | ???s???????????????????????????##?????? | | ???s???????????????????????????# ?????? | | ???????????????????????????????# ?????? | | ???????????????????????????????# ?????? | | ??????????????????????????????## ???### | | ??????????????????????????????# #### | | ??????????????????????????????# # " | | ???????????????????????????????# | | ????????????????????????????????# | | ????????????????????????????????# | | ???????###############??????????# # | | ???????# @ #?????????## | | ???????# a #?????????# # | | ???????#a"""" """" a #?????????# """ # | | ???????# """"a"""" ###########!""" ## | | ???????# """" """" *=!""" # | | ???????# a=%= [[[ # | | ???????# """"!"""" ######### = % # | | ???????# """" """" #?????? ## | | ???????# """" """" #?????? #####? | | ???????# #????? ##????? | | ???????###############???? #?????? | | ?????????????????????????## #?????? | | ??????????????????????????## ##?????? | | ???????????????????????????####???????? | | ??????????????????????????????????????? | | ??????????????????????????????????????? | | | | | | | | | | | | | | | | | | | +----------------------------------------------------+ Best States ------------- Heat Dissipation 47 Energy Generation 10 Energy Capacity 250 Matter Stores 300 Matter Capacity 300 Sight Range 16 Terrain Scan Density 10 Evasion (%) 50 Recoil Reduction 2 Item Schematics ----------------- None Robot Schematics ------------------ None Fabricated ------------ Nothing Repaired ---------- Nothing Alien Tech Used ----------------- None Achievements -------------- None Challenges ------------ None Game ------ Seed SensorPhysicsDrive Manual? 0 Play Time 00:20:52 Cumulative 33.5 hours Start 2025.05.23 @ 22:28:58 End 2025.05.23 @ 22:53:03 Sessions 1 Manual Loads 0 Difficulty Rogue Special Mode None Game No. 22 Rogue 22 Adventurer 0 Explorer 0 Win Type - Total 0 Types 0/0/0/0/0/0/0/0/0/0 Lore% 41 Gallery% 31 Achievement% 28 Wizard Run 0 Options --------- Layout 1 ASCII 0 Keyboard 1 Movement Numpad Keybinds 0 Fullscreen 2 Font 24/Terminus Map View 50x35 Zoom Use 0% Tactical HUD 1 Map Filters NONE Filters NONE Steam 1 RUN: 1a9e7538-0b64-4b85-b59d-44e597ad8820